fUST/lending_fUST_20240326
["ID","MTS","AMOUNT","RATE_DAILY","PERIOD"]
[320578973,1711455047424,-387.918526,0.00019873,2]
[320578974,1711455047433,-387.918526,0.00019873,2]
[320578975,1711455047442,-387.918526,0.00019873,2]
[320578976,1711455047452,-387.918526,0.00019873,2]
[320578977,1711455047461,-387.918526,0.00019873,2]
[320578978,1711455047470,-387.918526,0.00019873,2]
[320578979,1711455047482,-387.918526,0.00019873,2]
[320578980,1711455047492,-387.918526,0.00019873,2]
[320578981,1711455047501,-387.918526,0.00019873,2]
[320578982,1711455047513,-387.918526,0.00019873,2]
[320578983,1711455047523,-387.918526,0.00019873,2]
[320578984,1711455047532,-387.918526,0.00019873,2]
[320578985,1711455047542,-387.918526,0.00019873,2]
[320578986,1711455047551,-387.918526,0.00019873,2]
[320578987,1711455047561,-500.0,0.00019873,2]
[320578988,1711455047570,-387.918516,0.00019873,2]
[320578989,1711455047579,-500.0,0.00019873,2]
[320578990,1711455047589,-396.26216826,0.00019873,2]
[320578991,1711455047598,-170.90042212,0.00019873,2]
[320578992,1711455047607,-500.0,0.00019873,2]
[320578993,1711455047617,-9354.84,0.00019873,2]
[320578994,1711455047627,-504.40009681,0.00019873,2]
[320578995,1711455047637,-500.0,0.00019873,2]
[320578996,1711455047646,-500.0,0.00019873,2]
[320578997,1711455047655,-500.0,0.00019873,2]
[320578998,1711455047665,-500.0,0.00019873,2]
[320578999,1711455047675,-501.61305628,0.00019873,2]
[320579000,1711455047686,-500.0,0.00019873,2]
[320579001,1711455047697,-500.0,0.00019873,2]
[320579002,1711455047708,-958.34,0.00019873,2]
[320579003,1711455047718,-151.111348,0.00019873,2]
[320579004,1711455047735,-500.0,0.00019873,2]
[320579005,1711455047746,-40589.36,0.00019873,2]
[320579006,1711455047758,-698.74,0.00019873,2]
[320579007,1711455047771,-500.0,0.00019873,2]
[320579008,1711455047783,-503.89288377,0.00019873,2]
[320579009,1711455047794,-500.0,0.00019873,2]
[320579010,1711455047804,-500.0,0.00019873,2]
[320579011,1711455047815,-500.0,0.00019873,2]
[320579012,1711455047825,-263.93601849,0.00019873,2]
[320579013,1711455047838,-500.0,0.00019873,2]
[320579014,1711455047849,-500.0,0.00019873,2]
[320579015,1711455047860,-500.0,0.00019873,2]
[320579016,1711455047872,-500.0,0.00019873,2]
[320579017,1711455047882,-500.0,0.00019873,2]
[320579018,1711455047892,-3850.49,0.00019873,2]
[320579019,1711455047901,-8197.57,0.00019873,2]
[320579020,1711455047910,-621.06,0.00019873,2]
[320579021,1711455047920,-500.0,0.00019873,2]
[320579022,1711455047928,-500.0,0.00019873,2]
[320579023,1711455047938,-500.0,0.00019873,2]
[320579024,1711455047948,-892.92,0.00019873,2]
[320579025,1711455047957,-500.0,0.00019873,2]
[320579026,1711455047966,-501.39984253,0.00019873,2]
[320579027,1711455047981,-500.0,0.00019873,2]
[320579028,1711455047990,-151.0,0.00019873,2]
[320579029,1711455048000,-151.0,0.00019873,2]
[320579030,1711455048009,-151.0,0.00019873,2]
[320579031,1711455048018,-151.0,0.00019873,2]
[320579032,1711455048028,-151.0,0.00019873,2]
[320579033,1711455048037,-974.7,0.00019873,2]
[320579034,1711455048047,-28968.22268647,0.00019874,2]
[320579035,1711455052812,7166.01849641,0.00018877,2]
[320579036,1711455067290,4777.34566427,0.00018877,2]
[320579037,1711455083411,3981.12138689,0.00018877,2]
[320579038,1711455101811,3981.12138689,0.00018877,2]
[320579039,1711455117628,2074.16424257,0.00018877,2]
[320579040,1711455133414,2074.16424257,0.00018877,2]
[320579041,1711455153525,2074.16424257,0.00018877,2]
[320579042,1711455176640,2074.16424257,0.00018877,2]
[320579043,1711455195418,2074.16424257,0.00018877,2]
[320579044,1711455323900,500.0,0.00019,2]
[320579621,1711456238213,-382.8114,0.00019773,2]
[320579622,1711456238225,-29.14672473,0.00019773,2]
[320579623,1711456238235,-968.15025338,0.0001987,2]
[320579646,1711456241555,-3503.65713945,0.0001987,2]
[320579951,1711456246520,-317.62702287,0.0001987,2]
[320580082,1711456248198,5162.07167099,0.0001881,2]
[320581771,1711456280792,5845.2188793,0.00019,2]
[320581776,1711456455826,4047.29388808,0.00019,2]
[320581777,1711456455866,156.74183684,0.00019,2]
[320581778,1711456462248,155.5663629,0.00019,2]
[320581779,1711456466786,7482.43790868,0.00019,2]
[320581780,1711456511646,155.03255684,0.00019,2]
[320581782,1711456527616,157.43146812,0.00019,2]
[320581783,1711456614988,324.192205,0.00018819,2]
[320581784,1711456625453,250.0,0.00018819,2]
[320581785,1711456950155,168.09149062,0.00019673,2]
[320581802,1711457313034,162.096102,0.00018795,2]
[320581803,1711457327694,255.0617791,0.000189,2]
[320581877,1711457432371,-329.16322832,0.00019725,2]
[320581883,1711457432426,-280.02364859,0.00019725,2]
[320581885,1711457432436,-180.26624286,0.00019725,2]
[320581887,1711457432447,-1889.35512473,0.00019726,2]
[320581889,1711457432456,-785.18093439,0.00019726,2]
[320581891,1711457432465,-300.0,0.0001977,2]
[320581893,1711457432475,-500.0,0.0001977,2]
[320581895,1711457432485,-500.0,0.0001977,2]
[320581897,1711457432493,-130.42535017,0.0001977,2]
[320582510,1711457438436,-1316.24464983,0.0001977,2]
[320582512,1711457438445,-44327.9989911,0.00019771,2]
[320582514,1711457438456,-431.19471018,0.00019771,2]
[320582987,1711457443892,-500.0,0.0001977,2]
[320582988,1711457443904,-762.18095296,0.00019771,2]
[320582991,1711457444060,-4500.0,0.00019771,2]
[320583029,1711457446663,-1647.34543461,0.00019771,2]
[320583030,1711457446673,-567.73340046,0.00019773,2]
[320583031,1711457446682,-2417.60919791,0.00019866,2]
[320583032,1711457446691,-500.0,0.00019867,2]
[320583033,1711457446701,-1261.03682007,0.00019868,2]
[320583034,1711457446711,-1306.08839943,0.00019868,2]
[320583035,1711457446720,-322.61827325,0.00019868,2]
[320583037,1711457446729,-619.29876266,0.00019868,2]
[320583039,1711457446738,-500.0,0.00019868,2]
[320583041,1711457446748,-500.0,0.00019868,2]
[320583043,1711457446757,-500.0,0.00019868,2]
[320583045,1711457446766,-500.0,0.00019868,2]
[320583047,1711457446775,-545.39145583,0.00019868,2]
[320583048,1711457446784,-500.0,0.00019868,2]
[320583050,1711457446793,-558.11,0.00019868,2]
[320583052,1711457446802,-5838.65,0.00019868,2]
[320583054,1711457446811,-500.0,0.00019868,2]
[320583056,1711457446821,-2289.94,0.00019868,2]
[320583058,1711457446830,-500.0,0.00019868,2]
[320583060,1711457446839,-500.0,0.00019868,2]
[320583062,1711457446849,-3177.78,0.00019868,2]
[320583064,1711457446858,-500.0,0.00019868,2]
[320583066,1711457446867,-500.0,0.00019868,2]
[320583067,1711457446875,-500.0,0.00019868,2]
[320583068,1711457446884,-500.0,0.00019868,2]
[320583069,1711457446893,-1594.63,0.00019868,2]
[320583070,1711457446902,-6361.58,0.00019868,2]
[320583071,1711457446910,-500.0,0.00019868,2]
[320583072,1711457446920,-500.0,0.00019868,2]
[320583073,1711457446929,-2602.23,0.00019868,2]
[320583074,1711457446938,-500.0,0.00019868,2]
[320583075,1711457446946,-500.0,0.00019868,2]
[320583076,1711457446955,-500.0,0.00019868,2]
[320583077,1711457446964,-3074.31,0.00019868,2]
[320583078,1711457446974,-2617.11,0.00019868,2]
[320583079,1711457446983,-500.0,0.00019868,2]
[320583080,1711457446992,-500.0,0.00019868,2]
[320583081,1711457447001,-500.0,0.00019868,2]
[320583082,1711457447010,-623.63,0.00019868,2]
[320583083,1711457447019,-500.0,0.00019868,2]
[320583084,1711457447028,-13842.19,0.00019868,2]
[320583085,1711457447037,-987.43,0.00019868,2]
[320583086,1711457447046,-304.35105005,0.00019869,2]
[320583087,1711457447055,-2630.43016386,0.00019869,2]
[320583088,1711457447064,-717.23,0.00019869,2]
[320583089,1711457447073,-500.0,0.00019869,2]
[320583090,1711457447082,-500.0,0.00019869,2]
[320583091,1711457447091,-500.0,0.00019869,2]
[320583092,1711457447100,-500.0,0.00019869,2]
[320583093,1711457447109,-500.0,0.00019869,2]
[320583094,1711457447118,-500.0,0.00019869,2]
[320583095,1711457447127,-900.03,0.00019869,2]
[320583096,1711457447136,-820.45,0.00019869,2]
[320583097,1711457447145,-500.0,0.00019869,2]
[320583098,1711457447155,-833.7,0.00019869,2]
[320583100,1711457447166,-921.73,0.00019869,2]
[320583102,1711457447175,-500.0,0.00019869,2]
[320583104,1711457447184,-500.0,0.00019869,2]
[320583106,1711457447194,-500.0,0.00019869,2]
[320583108,1711457447203,-993.49,0.00019869,2]
[320583110,1711457447213,-855.12,0.00019869,2]
[320583112,1711457447223,-508.00191891,0.00019869,2]
[320583114,1711457447232,-161.75326925,0.00019869,2]
[320583116,1711457447241,-2678.74,0.00019869,2]
[320583118,1711457447250,-500.0,0.00019869,2]
[320583120,1711457447259,-500.0,0.00019869,2]
[320583122,1711457447268,-500.0,0.00019869,2]
[320583124,1711457447278,-500.0,0.00019869,2]
[320583126,1711457447287,-500.0,0.00019869,2]
[320583128,1711457447296,-1446.67,0.00019869,2]
[320583130,1711457447305,-1446.67,0.00019869,2]
[320583132,1711457447314,-1446.67,0.00019869,2]
[320583134,1711457447323,-1446.67,0.00019869,2]
[320583136,1711457447333,-1446.67,0.00019869,2]
[320583137,1711457447342,-766.66,0.00019869,2]
[320583138,1711457447351,-656.11,0.00019869,2]
[320583139,1711457447360,-500.0,0.00019869,2]
[320583141,1711457447369,-500.0,0.00019869,2]
[320583143,1711457447380,-4032.25,0.00019869,2]
[320583144,1711457447390,-3215.69,0.00019869,2]
[320583145,1711457447402,-500.0,0.00019869,2]
[320583146,1711457447411,-500.0,0.00019869,2]
[320583147,1711457447421,-500.0,0.00019869,2]
[320583148,1711457447431,-13203.26,0.00019869,2]
[320583149,1711457447440,-912.21,0.00019869,2]
[320583150,1711457447453,-500.0,0.00019869,2]
[320583151,1711457447463,-712.48,0.00019869,2]
[320583152,1711457447475,-155.72436758,0.00019869,2]
[320583153,1711457447484,-579.95269683,0.00019869,2]
[320583154,1711457447494,-700.81,0.00019869,2]
[320583155,1711457447503,-500.0,0.00019869,2]
[320583156,1711457447513,-259.76440349,0.00019869,2]
[320583157,1711457447523,-500.0,0.00019869,2]
[320583158,1711457447532,-500.0,0.00019869,2]
[320583159,1711457447542,-500.0,0.00019869,2]
[320583160,1711457447551,-573.5905054,0.00019869,2]
[320583161,1711457447561,-42298.31,0.00019869,2]
[320583162,1711457447570,-7970.48,0.00019869,2]
[320583163,1711457447579,-918.41,0.00019869,2]
[320583164,1711457447588,-500.0,0.00019869,2]
[320583165,1711457447598,-8965.06,0.00019869,2]
[320583166,1711457447607,-500.0,0.00019869,2]
[320583167,1711457447618,-500.0,0.00019869,2]
[320583168,1711457447628,-500.0,0.00019869,2]
[320583169,1711457447637,-500.0,0.00019869,2]
[320583170,1711457447647,-500.0,0.00019869,2]
[320583171,1711457447657,-669.63,0.00019869,2]
[320583172,1711457447667,-500.0,0.00019869,2]
[320583173,1711457447677,-3690.05,0.00019869,2]
[320583174,1711457447686,-500.0,0.00019869,2]
[320583175,1711457447695,-500.0,0.00019869,2]
[320583176,1711457447705,-464.86225366,0.00019869,2]
[320583177,1711457447714,-934.09,0.00019869,2]
[320583178,1711457447723,-494.4,0.00019869,2]
[320583179,1711457447733,-494.4,0.00019869,2]
[320583180,1711457447742,-494.4,0.00019869,2]
[320583181,1711457447752,-500.0,0.00019869,2]
[320583182,1711457447761,-494.4,0.00019869,2]
[320583183,1711457447770,-494.4,0.00019869,2]
[320583184,1711457447779,-494.4,0.00019869,2]
[320583185,1711457447789,-7856.0,0.00019869,2]
[320583186,1711457447798,-501.59789091,0.00019869,2]
[320583187,1711457447807,-671.97,0.00019869,2]
[320583188,1711457447817,-500.0,0.00019869,2]
[320583189,1711457447826,-500.81081038,0.00019869,2]
[320583190,1711457447835,-500.0,0.00019869,2]
[320583191,1711457447844,-672.07,0.00019869,2]
[320583192,1711457447854,-500.0,0.00019869,2]
[320583193,1711457447863,-500.0,0.00019869,2]
[320583194,1711457447872,-500.0,0.00019869,2]
[320583195,1711457447883,-500.0,0.00019869,2]
[320583196,1711457447892,-504.42951273,0.00019869,2]
[320583197,1711457447901,-906.13,0.00019869,2]
[320583198,1711457447910,-500.0,0.0001987,2]
[320583199,1711457447922,-500.0,0.0001987,2]
[320583200,1711457447932,-500.0,0.0001987,2]
[320583201,1711457447943,-570.71,0.0001987,2]
[320583202,1711457447952,-500.0,0.0001987,2]
[320583203,1711457447962,-500.0,0.0001987,2]
[320583204,1711457447971,-994.65,0.0001987,2]
[320583205,1711457447981,-500.0,0.0001987,2]
[320583206,1711457447990,-1201.88,0.0001987,2]
[320583207,1711457447999,-629.84933358,0.0001987,2]
[320583208,1711457448008,-500.0,0.0001987,2]
[320583209,1711457448017,-505.84339448,0.0001987,2]
[320583210,1711457448026,-618.17,0.0001987,2]
[320583211,1711457448035,-265.97739141,0.0001987,2]
[320583212,1711457448044,-910.5,0.0001987,2]
[320583213,1711457448053,-500.0,0.0001987,2]
[320583214,1711457448063,-500.0,0.0001987,2]
[320583215,1711457448072,-817.81,0.0001987,2]
[320583216,1711457448082,-500.0,0.0001987,2]
[320583217,1711457448091,-500.0,0.0001987,2]
[320583218,1711457448100,-151.0,0.0001987,2]
[320583219,1711457448109,-500.0,0.0001987,2]
[320583220,1711457448118,-500.78404887,0.0001987,2]
[320583221,1711457448128,-627.79338296,0.0001987,2]
[320583222,1711457448139,-3360.76,0.0001987,2]
[320583223,1711457448149,-504.49033098,0.0001987,2]
[320583224,1711457448158,-500.0,0.0001987,2]
[320583225,1711457448169,-500.0,0.0001987,2]
[320583226,1711457448178,-500.0,0.0001987,2]
[320583227,1711457448188,-500.0,0.0001987,2]
[320583228,1711457448208,-500.0,0.0001987,2]
[320583229,1711457448218,-501.34597348,0.0001987,2]
[320583230,1711457448227,-500.0,0.0001987,2]
[320583231,1711457448238,-500.0,0.0001987,2]
[320583232,1711457448248,-500.0,0.0001987,2]
[320583233,1711457448257,-500.0,0.0001987,2]
[320583234,1711457448266,-503.70197307,0.0001987,2]
[320583235,1711457448275,-628.66195804,0.0001987,2]
[320583236,1711457448285,-1138.74,0.0001987,2]
[320583237,1711457448294,-500.0,0.0001987,2]
[320583238,1711457448303,-500.80761814,0.0001987,2]
[320583239,1711457448312,-855.72,0.0001987,2]
[320583240,1711457448321,-500.0,0.0001987,2]
[320583241,1711457448331,-500.0,0.0001987,2]
[320583242,1711457448340,-562.84,0.0001987,2]
[320583243,1711457448350,-342.54739164,0.0001987,2]
[320583244,1711457448359,-504.31818964,0.0001987,2]
[320583245,1711457448369,-500.0,0.0001987,2]
[320583246,1711457448379,-500.0,0.0001987,2]
[320583247,1711457448388,-500.0,0.0001987,2]
[320583248,1711457448397,-500.0,0.0001987,2]
[320583249,1711457448409,-500.0,0.0001987,2]
[320583250,1711457448516,-5421.8,0.0001987,2]
[320583251,1711457448526,-614.18412853,0.0001987,2]
[320583252,1711457448535,-1153.05,0.0001987,2]
[320583253,1711457448545,-1016.21,0.0001987,2]
[320583254,1711457448554,-500.0,0.0001987,2]
[320583255,1711457448563,-500.0,0.0001987,2]
[320583256,1711457448572,-459.07783693,0.0001987,2]
[320583257,1711457448582,-1106.04,0.0001987,2]
[320583258,1711457448591,-500.0,0.0001987,2]
[320583259,1711457448601,-553.38,0.0001987,2]
[320583260,1711457448610,-500.0,0.0001987,2]
[320583261,1711457448619,-500.0,0.0001987,2]
[320583262,1711457448628,-500.0,0.0001987,2]
[320583263,1711457448637,-621.63381265,0.0001987,2]
[320583264,1711457448646,-500.0,0.0001987,2]
[320583265,1711457448656,-697.23,0.0001987,2]
[320583266,1711457448665,-278.77905846,0.0001987,2]
[320583267,1711457448674,-500.0,0.0001987,2]
[320583268,1711457448683,-500.0,0.0001987,2]
[320583269,1711457448692,-502.97023899,0.0001987,2]
[320583270,1711457448702,-500.0,0.0001987,2]
[320583271,1711457448712,-500.0,0.0001987,2]
[320583272,1711457448721,-503.78347605,0.0001987,2]
[320583273,1711457448731,-500.0,0.0001987,2]
[320583274,1711457448740,-500.0,0.0001987,2]
[320583275,1711457448749,-505.16691766,0.0001987,2]
[320583276,1711457448758,-819.42,0.0001987,2]
[320583277,1711457448767,-500.0,0.0001987,2]
[320583278,1711457448777,-1329.51,0.0001987,2]
[320583279,1711457448786,-500.0,0.0001987,2]
[320583280,1711457448795,-503.45625205,0.0001987,2]
[320583281,1711457448805,-500.0,0.0001987,2]
[320583282,1711457448814,-500.0,0.0001987,2]
[320583283,1711457448823,-519.11,0.0001987,2]
[320583284,1711457448832,-456.9913529,0.0001987,2]
[320583285,1711457448841,-500.0,0.0001987,2]
[320583286,1711457448851,-500.0,0.0001987,2]
[320583287,1711457448860,-500.0,0.0001987,2]
[320583288,1711457448869,-906.44,0.0001987,2]
[320583289,1711457448879,-500.0,0.0001987,2]
[320583290,1711457448888,-500.15,0.0001987,2]
[320583291,1711457448898,-483.05413582,0.0001987,2]
[320583292,1711457448907,-500.0,0.0001987,2]
[320583293,1711457448917,-500.0,0.0001987,2]
[320583294,1711457448926,-760.26,0.0001987,2]
[320583295,1711457448935,-3394.53,0.0001987,2]
[320583296,1711457448945,-538.17,0.0001987,2]
[320583297,1711457448954,-500.0,0.0001987,2]
[320583298,1711457448963,-500.0,0.0001987,2]
[320583299,1711457448973,-500.0,0.0001987,2]
[320583300,1711457448982,-219.69127685,0.0001987,2]
[320584044,1711457612337,1837837.49445527,0.00026602,60]
[320584051,1711457785287,162.096102,0.0001879,2]
[320584052,1711457800098,99000.0,0.00025018,80]
[320584053,1711457823342,2775.88682411,0.00026,120]
[320584054,1711457847502,1919.17184783,0.00024297,120]
[320584055,1711457865980,50000.0,0.00024242,120]
[320584056,1711457883965,99826.149658,0.00024018,60]
[320584057,1711457908440,4000.0,0.00024229,120]
[320584058,1711457908469,2856.0,0.00024229,120]
[320584059,1711457908490,2856.0,0.00024229,120]
[320584060,1711457908512,2856.0,0.00024229,120]
[320584061,1711457908534,2856.0,0.00024229,120]
[320584062,1711457942014,1200.0,0.0002377,120]
[320584063,1711457942041,2000.0,0.0002377,120]
[320584064,1711457942063,2856.6,0.0002377,120]
[320584065,1711457942085,2856.6,0.0002377,120]
[320584066,1711457942108,2856.6,0.0002377,120]
[320584067,1711457942129,2856.6,0.0002377,120]
[320584068,1711457942151,2856.6,0.0002377,120]
[320584069,1711457942174,1000.0,0.0002377,120]
[320584070,1711457942199,56266.19754478,0.0002377,120]
[320584074,1711458429880,-218.96,0.000199,12]
[320584086,1711458451953,-785.18093439,0.00019767,2]
[320584087,1711458451976,-1000.0,0.00019768,2]
[320584088,1711458451999,-1000.0,0.00019769,2]
[320584089,1711458452027,-7909.53319986,0.00019769,2]
[320584090,1711458452050,-883.98072438,0.0001977,2]
[320584091,1711458452075,-500.0,0.0001977,2]
[320584092,1711458452097,-764.58,0.0001977,2]
[320584093,1711458452121,-1082.5,0.0001977,2]
[320584094,1711458452145,-500.0,0.00019865,2]
[320584095,1711458452171,-500.0,0.00019865,2]
[320584096,1711458452194,-3864.24,0.00019865,2]
[320584097,1711458452218,-500.0,0.00019865,2]
[320584098,1711458452242,-682.79,0.00019865,2]
[320584099,1711458452265,-500.0,0.00019865,2]
[320584100,1711458452287,-500.0,0.00019865,2]
[320584101,1711458452310,-500.0,0.00019865,2]
[320584102,1711458452333,-500.0,0.00019865,2]
[320584103,1711458452356,-895.16,0.00019865,2]
[320584104,1711458452379,-500.0,0.00019865,2]
[320584105,1711458452402,-500.0,0.00019865,2]
[320584106,1711458452424,-500.0,0.00019865,2]
[320584107,1711458452448,-447.89672564,0.00019865,2]
[320584108,1711458452471,-868.37,0.00019865,2]
[320584109,1711458452494,-332.83326332,0.00019866,2]
[320584110,1711458452517,-307.72881521,0.00019866,2]
[320584111,1711458452540,-500.0,0.00019866,2]
[320584112,1711458452563,-500.0,0.00019866,2]
[320584113,1711458452586,-500.0,0.00019866,2]
[320584114,1711458452608,-451.4996124,0.00019866,2]
[320584115,1711458452632,-500.0,0.00019866,2]
[320584116,1711458452655,-282.95881773,0.00019866,2]
[320584117,1711458452680,-500.0,0.00019866,2]
[320584118,1711458452703,-500.0,0.00019866,2]
[320584119,1711458452728,-500.0,0.00019866,2]
[320584120,1711458452754,-500.0,0.00019866,2]
[320584121,1711458452779,-500.0,0.00019866,2]
[320584122,1711458452802,-2194.52,0.00019866,2]
[320584123,1711458452828,-820.46,0.00019866,2]
[320584124,1711458452851,-500.0,0.00019866,2]
[320584125,1711458452875,-435.67929192,0.00019866,2]
[320584126,1711458452898,-3045.37,0.00019866,2]
[320584127,1711458452921,-500.0,0.00019866,2]
[320584128,1711458452943,-500.0,0.00019866,2]
[320584129,1711458452966,-500.0,0.00019866,2]
[320584130,1711458452988,-500.0,0.00019866,2]
[320584131,1711458453014,-500.0,0.00019866,2]
[320584132,1711458453036,-500.0,0.00019866,2]
[320584133,1711458453058,-500.0,0.00019866,2]
[320584134,1711458453081,-500.0,0.00019866,2]
[320584135,1711458453104,-500.0,0.00019866,2]
[320584136,1711458453127,-2493.8,0.00019866,2]
[320584137,1711458453148,-1528.19,0.00019866,2]
[320584138,1711458453171,-6096.52,0.00019866,2]
[320584139,1711458453193,-639.18,0.00019866,2]
[320584140,1711458453216,-2946.21,0.00019866,2]
[320584141,1711458453238,-178.43933474,0.00019866,2]
[320584142,1711458453261,-883.32,0.00019866,2]
[320584143,1711458453283,-500.0,0.00019866,2]
[320584144,1711458453306,-500.0,0.00019866,2]
[320584145,1711458453329,-500.0,0.00019866,2]
[320584146,1711458453352,-500.0,0.00019866,2]
[320584147,1711458453376,-500.0,0.00019866,2]
[320584148,1711458453399,-13265.43,0.00019866,2]
[320584149,1711458453423,-546.93,0.00019866,2]
[320584150,1711458453445,-2508.06,0.00019866,2]
[320584151,1711458453564,-1151.8,0.00019866,2]
[320584152,1711458453590,-1200.86,0.00019866,2]
[320584153,1711458453613,-500.0,0.00019866,2]
[320584154,1711458453636,-5772.51,0.00019866,2]
[320584155,1711458453659,-946.29,0.00019866,2]
[320584156,1711458453682,-189.45689167,0.00019867,2]
[320584157,1711458453704,-500.0,0.00019867,2]
[320584158,1711458453728,-734.72,0.00019867,2]
[320584159,1711458453752,-1085.01,0.00019867,2]
[320584160,1711458453777,-572.19019734,0.00019867,2]
[320584161,1711458453799,-641.73,0.00019867,2]
[320584162,1711458453822,-500.0,0.00019867,2]
[320584163,1711458453846,-500.0,0.00019867,2]
[320584164,1711458453869,-3536.3,0.00019867,2]
[320584165,1711458453893,-880.14,0.00019867,2]
[320584166,1711458453916,-500.0,0.00019867,2]
[320584167,1711458453940,-500.0,0.00019867,2]
[320584168,1711458453963,-500.0,0.00019867,2]
[320584169,1711458453987,-500.0,0.00019867,2]
[320584170,1711458454011,-644.06,0.00019867,2]
[320584171,1711458454033,-3220.72,0.00019867,2]
[320584172,1711458454055,-500.0,0.00019867,2]
[320584173,1711458454078,-643.97,0.00019867,2]
[320584174,1711458454102,-500.0,0.00019867,2]
[320584175,1711458454124,-500.0,0.00019867,2]
[320584176,1711458454147,-500.0,0.00019867,2]
[320584177,1711458454170,-500.0,0.00019867,2]
[320584178,1711458454194,-500.0,0.00019867,2]
[320584179,1711458454219,-500.0,0.00019867,2]
[320584180,1711458454246,-1091.3,0.00019867,2]
[320584181,1711458454273,-500.0,0.00019867,2]
[320584182,1711458454298,-159.930014,0.00019867,2]
[320584183,1711458454327,-500.0,0.00019867,2]
[320584184,1711458454352,-1681.54,0.00019867,2]
[320584186,1711458454377,-973.87,0.00019867,2]
[320584187,1711458454403,-1059.95,0.00019867,2]
[320584188,1711458454429,-534.85,0.00019867,2]
[320584189,1711458454461,-530.32,0.00019867,2]
[320584190,1711458454501,-5195.9,0.00019867,2]
[320584191,1711458454539,-500.0,0.00019867,2]
[320584192,1711458454575,-687.35,0.00019867,2]
[320584193,1711458454608,-500.0,0.00019867,2]
[320584194,1711458454643,-500.0,0.00019867,2]
[320584195,1711458454677,-668.18,0.00019867,2]
[320584196,1711458454707,-500.0,0.00019867,2]
[320584197,1711458454742,-500.0,0.00019867,2]
[320584198,1711458454773,-500.0,0.00019867,2]
[320584199,1711458454808,-3081.7,0.00019867,2]
[320584200,1711458454845,-500.0,0.00019867,2]
[320584201,1711458454874,-500.0,0.00019867,2]
[320584202,1711458454907,-500.0,0.00019867,2]
[320584203,1711458454936,-500.0,0.00019867,2]
[320584204,1711458454963,-874.2,0.00019867,2]
[320584205,1711458454991,-500.0,0.00019867,2]
[320584206,1711458455023,-876.93,0.00019867,2]
[320584207,1711458455052,-500.0,0.00019867,2]
[320584208,1711458455083,-500.0,0.00019867,2]
[320584209,1711458455113,-12653.13,0.00019867,2]
[320584210,1711458455145,-500.0,0.00019867,2]
[320584211,1711458455176,-569.7321774,0.00019867,2]
[320584212,1711458518057,-2089.55450555,0.00022,14]
[320584279,1711458632541,-785.18093439,0.00019773,2]
[320584281,1711458632551,-510.96006036,0.00019774,2]
[320584283,1711458632561,-500.0,0.00019865,2]
[320584285,1711458632570,-837.77,0.00019865,2]
[320584287,1711458632579,-500.0,0.00019865,2]
[320584289,1711458632588,-1634.94654753,0.00019865,2]
[320584292,1711458632600,-709.07,0.00019865,2]
[320584295,1711458632611,-5294.36345247,0.00019865,2]
[320584298,1711458632620,-500.0,0.00019865,2]
[320584301,1711458632629,-2103.08,0.00019866,2]
[320584303,1711458632638,-628.78,0.00019866,2]